bitfinex/quotes_SOLUSD_20241107
["timestamp","ask_amount","ask_price","bid_price","bid_amount"]
[1730975695380,12.48496856,187.08,187.03,7.97725631]
[1730975695381,7.97725631,187.08,187.03,7.97725631]
[1730975696176,7.97725631,187.1,187.05,7.97725631]
[1730975696501,16.2828,187.13,187.05,7.97725631]
[1730975696502,7.97725631,187.11,187.05,7.97725631]
[1730975696710,4.91123235,187.15,187.0,31.90902524]
[1730975696997,7.97725631,187.11,187.05,7.97725631]
[1730975697387,12.46056176,187.11,187.05,12.46056176]
[1730975698507,12.46056176,187.1,187.04,12.46056176]
[1730975702009,12.46056176,187.11,187.05,12.46056176]
[1730975702392,12.46056176,187.12,187.06,12.46056176]
[1730975703387,38.5576,187.22,187.08,12.46056176]
[1730975703586,12.46056176,187.14,187.08,12.46056176]
[1730975703992,12.46056176,187.15,187.09,12.46056176]
[1730975704207,12.46056176,187.15,187.1,12.46056176]
[1730975704512,12.46056176,187.15,187.09,12.46056176]
[1730975705281,4.99118779,187.21,187.05,23.776884]
[1730975705282,12.46056176,187.17,187.11,12.46056176]
[1730975705708,12.46056176,187.19,187.13,12.46056176]
[1730975705886,12.46056176,187.19,187.14,12.46056176]
[1730975706419,12.46056176,187.2,187.14,12.46056176]
[1730975706588,12.46056176,187.21,187.15,12.46056176]
[1730975706917,4.99556872,187.25,187.1,12.46056176]
[1730975706918,12.46056176,187.22,187.16,12.46056176]
[1730975707094,12.46056176,187.21,187.15,12.46056176]
[1730975708410,12.46056176,187.22,187.16,12.46056176]
[1730975708611,12.46056176,187.18,187.1,20.0]
[1730975708919,12.46056176,187.17,187.11,12.46056176]
[1730975709297,12.46056176,187.15,187.09,28.03796176]
[1730975711298,12.46056176,187.15,187.1,12.46056176]
[1730975711598,0.2,187.25,187.1,12.46056176]
[1730975711599,12.46056176,187.16,187.1,12.46056176]
[1730975711811,12.46056176,187.16,187.11,12.46056176]
[1730975712285,12.46056176,187.17,187.11,12.46056176]
[1730975712489,12.46056176,187.17,187.12,12.46056176]
[1730975713313,12.46056176,187.2,187.14,12.46056176]
[1730975713994,12.46056176,187.19,187.14,12.46056176]
[1730975714182,12.46056176,187.18,187.13,12.46056176]
[1730975715283,12.46056176,187.16,187.11,12.46056176]
[1730975715487,12.46056176,187.17,187.11,12.46056176]
[1730975715909,12.46056176,187.16,187.11,12.46056176]
[1730975716808,12.46056176,187.17,187.11,12.46056176]
[1730975717608,12.46056176,187.16,187.11,12.46056176]
[1730975718016,12.46056176,187.16,187.1,12.46056176]
[1730975718194,12.46056176,187.15,187.09,28.03796176]
[1730975719090,12.46056176,187.16,187.1,12.46056176]
[1730975721011,12.46056176,187.18,187.13,12.46056176]
[1730975721318,12.46056176,187.17,187.11,12.46056176]
[1730975721614,12.46056176,187.17,187.12,12.46056176]
[1730975721818,12.46056176,187.17,187.09,15.5774]
[1730975721819,12.46056176,187.18,187.13,12.46056176]
[1730975722000,12.46056176,187.18,187.12,12.46056176]
[1730975722815,12.46056176,187.17,187.11,12.46056176]
[1730975723114,12.46056176,187.16,187.11,12.46056176]
[1730975723412,12.46056176,187.16,187.1,12.46056176]
[1730975724417,12.46056176,187.17,187.11,12.46056176]
[1730975725500,12.46056176,187.18,187.12,12.46056176]
[1730975725925,4.98242359,187.24,187.12,12.46056176]
[1730975725926,12.46056176,187.17,187.12,12.46056176]
[1730975726098,12.46056176,187.18,187.12,12.46056176]
[1730975726302,12.46056176,187.19,187.14,12.46056176]
[1730975726902,12.46056176,187.2,187.14,12.46056176]
[1730975727104,12.46056176,187.2,187.15,12.46056176]
[1730975727312,12.46056176,187.18,187.12,12.46056176]
[1730975727511,12.46056176,187.17,187.11,12.46056176]
[1730975728026,12.46056176,187.16,187.1,12.46056176]
[1730975728232,12.46056176,187.16,187.11,12.46056176]
[1730975730129,12.46056176,187.16,187.09,15.5774]
[1730975730130,12.46056176,187.18,187.13,12.46056176]
[1730975730427,12.46056176,187.18,187.12,12.46056176]
[1730975730602,12.46056176,187.17,187.11,12.46056176]
[1730975735724,12.46056176,187.18,187.11,12.46056176]
[1730975735922,43.776884,187.25,187.11,12.46056176]
[1730975735923,12.46056176,187.17,187.11,12.46056176]
[1730975736124,12.46056176,187.18,187.11,12.46056176]
[1730975737913,12.46056176,187.17,187.1,12.46056176]
[1730975739431,7.97030731,187.17,187.1,7.97030731]
[1730975741730,7.97030731,187.17,187.11,7.97030731]
[1730975743322,7.97030731,187.18,187.12,7.97030731]
[1730975744924,7.97030731,187.17,187.1,7.97030731]
[1730975745113,7.97030731,187.16,187.1,7.97030731]
[1730975746330,7.97030731,187.17,187.1,7.97030731]
[1730975748409,7.97030731,187.17,187.08,0.12549]
[1730975748410,7.97030731,187.18,187.11,7.97030731]
[1730975748743,7.97030731,187.17,187.1,7.97030731]
[1730975750417,23.51850731,187.19,187.1,7.97030731]
[1730975750838,16.6412,187.23,187.12,7.97030731]
[1730975751029,16.6412,187.23,187.08,0.1]
[1730975751030,18.23720572,187.22,187.15,7.97030731]
[1730975751214,3.94880708,187.21,187.15,7.97030731]
[1730975751413,3.94880708,187.2,187.15,7.97030731]
[1730975751614,7.97030731,187.22,187.15,7.97030731]
[1730975751833,7.97030731,187.22,187.16,7.97030731]
[1730975751834,3.94989587,187.21,187.16,7.97030731]
[1730975752046,7.97030731,187.22,187.15,7.97030731]
[1730975752339,3.94993714,187.21,187.15,7.97030731]
[1730975752635,7.97030731,187.22,187.15,7.97030731]
[1730975752842,11.92008582,187.21,187.15,7.97030731]
[1730975753148,7.97030731,187.21,187.15,7.97030731]
[1730975755317,16.6412,187.23,187.13,7.97030731]
[1730975755318,7.97030731,187.19,187.13,7.97030731]
[1730975755829,16.6412,187.23,187.14,7.97030731]
[1730975756135,7.97030731,187.2,187.14,7.97030731]
[1730975756335,7.97030731,187.19,187.11,16.6615]
[1730975756518,7.97030731,187.17,187.12,7.97030731]
[1730975758541,7.97030731,187.13,187.05,6.3134]
[1730975758720,7.97030731,187.1,187.03,16.3628]
[1730975758926,7.97030731,187.09,187.04,7.97030731]
[1730975759843,7.97030731,187.1,187.04,7.97030731]
[1730975762240,7.97030731,187.09,187.01,7.44549777]
[1730975762553,15.6314,187.15,186.98,1.02304992]
[1730975762554,7.97030731,187.07,187.0,20.0]
[1730975762722,7.97030731,187.05,186.99,7.97030731]
[1730975763345,7.97030731,187.05,186.96,15.1956]
[1730975763553,7.97030731,187.04,186.98,7.97030731]
[1730975763746,7.97030731,187.03,186.99,5.01018849]
[1730975763936,6.1184,187.09,186.99,5.01018849]
[1730975763937,7.97030731,187.05,186.99,7.97030731]
[1730975764135,6.1184,187.09,187.01,7.97030731]
[1730975764341,7.97030731,187.07,187.01,7.97030731]
[1730975765047,7.97030731,187.07,186.97,0.12549]
[1730975765048,7.97030731,187.08,187.02,7.97030731]
[1730975765249,7.97030731,187.09,187.03,7.97030731]
[1730975766133,6.1184,187.14,187.04,7.97030731]
[1730975766646,7.97030731,187.1,187.04,7.97030731]
[1730975767839,7.97030731,187.08,187.02,7.97030731]
[1730975768448,7.97030731,187.07,187.01,7.97030731]
[1730975769130,7.97030731,187.06,187.0,7.97030731]
[1730975770453,7.97030731,187.07,187.01,7.97030731]
[1730975771238,7.97030731,187.06,186.97,23.902374]
[1730975771462,7.97030731,187.07,187.01,7.97030731]
[1730975772955,7.97030731,187.07,187.02,7.97030731]
[1730975773332,7.97030731,187.07,187.01,7.97030731]
[1730975773657,20.0,187.13,187.02,7.97030731]
[1730975773841,7.97030731,187.08,187.03,7.97030731]
[1730975774456,6.1184,187.14,187.04,7.97030731]
[1730975774665,7.97030731,187.11,187.05,7.97030731]
[1730975777644,15.6314,187.15,187.05,7.97030731]
[1730975777847,7.97030731,187.1,187.05,7.97030731]
[1730975778055,15.6314,187.15,187.07,7.97030731]
[1730975778256,7.97030731,187.14,187.08,7.97030731]
[1730975778568,15.6314,187.15,187.03,43.776884]
[1730975778569,23.60170731,187.15,187.09,7.97030731]
[1730975778861,7.97030731,187.16,187.1,7.97030731]
[1730975780265,7.97030731,187.16,187.11,7.97030731]
[1730975780635,15.0111,187.19,187.12,7.97030731]
[1730975780636,7.97030731,187.18,187.12,7.97030731]
[1730975781241,7.97030731,187.2,187.14,7.97030731]
[1730975781438,15.8126,187.23,187.15,7.97030731]
[1730975781663,7.97030731,187.21,187.15,7.97030731]
[1730975783041,6.2402,187.25,187.17,7.97030731]
[1730975783238,7.97030731,187.24,187.18,7.97030731]
[1730975783457,12.44403218,187.24,187.18,12.44403218]
[1730975784345,12.44403218,187.22,187.17,12.44403218]
[1730975785545,12.44403218,187.23,187.17,12.44403218]
[1730975786251,12.44403218,187.23,187.13,43.902374]
[1730975786453,12.44403218,187.23,187.17,12.44403218]
[1730975787165,12.44403218,187.23,187.18,12.44403218]
[1730975787955,12.44403218,187.24,187.18,12.44403218]
[1730975788156,12.44403218,187.26,187.2,12.44403218]
[1730975788471,28.53633218,187.28,187.22,12.44403218]
[1730975788950,28.53633218,187.28,187.23,12.44403218]
[1730975789350,28.53633218,187.28,187.22,12.44403218]
[1730975789567,12.44403218,187.27,187.21,12.44403218]
[1730975789743,12.44403218,187.26,187.21,12.44403218]
[1730975790643,12.44403218,187.27,187.21,12.44403218]
[1730975792365,12.44403218,187.26,187.21,12.44403218]
[1730975792665,15.9728,187.32,187.21,12.44403218]
[1730975792666,12.44403218,187.27,187.21,12.44403218]
[1730975793750,12.44403218,187.27,187.22,12.44403218]
[1730975793945,12.44403218,187.29,187.23,12.44403218]
[1730975794152,11.29908577,187.33,187.28,12.44403218]
[1730975794153,5.02448577,187.33,187.28,12.44403218]
[1730975794356,12.44403218,187.34,187.28,12.44403218]
[1730975794658,12.44403218,187.4,187.27,12.44403218]
[1730975794659,12.44403218,187.33,187.27,12.44403218]
[1730975795246,12.44403218,187.32,187.25,12.44403218]
[1730975795446,12.44403218,187.31,187.26,20.0]
[1730975797180,12.44403218,187.31,187.25,12.44403218]
[1730975797471,12.44403218,187.31,187.23,43.902374]
[1730975797672,12.44403218,187.31,187.25,20.0]
[1730975797867,43.776884,187.38,187.25,32.44403218]
[1730975798066,12.44403218,187.31,187.25,32.44403218]
[1730975798463,12.44403218,187.32,187.26,12.44403218]
[1730975801257,12.44403218,187.32,187.25,20.0]
[1730975801258,12.44403218,187.31,187.25,32.44403218]
[1730975801452,43.776884,187.38,187.25,20.0]
[1730975801453,12.44403218,187.3,187.25,20.0]
[1730975801770,12.44403218,187.29,187.24,20.0]
[1730975802378,12.44403218,187.3,187.24,32.44403218]
[1730975803270,12.44403218,187.3,187.24,12.44403218]
[1730975803456,7.95879971,187.3,187.24,27.95879971]
[1730975804364,15.2631,187.33,187.2,15.1858]
[1730975804365,7.95879971,187.27,187.21,27.95879971]
[1730975804574,7.95879971,187.24,187.17,6.6466]
[1730975804747,7.95879971,187.24,187.18,7.95879971]
[1730975804950,31.83519884,187.3,187.19,7.95879971]
[1730975804951,7.95879971,187.25,187.19,7.95879971]
[1730975805755,7.95879971,187.24,187.18,28.08428971]
[1730975809151,7.95879971,187.22,187.18,20.0]
[1730975809549,7.95879971,187.22,187.17,20.12549]
[1730975817178,7.95879971,187.2,187.14,7.95879971]
[1730975817365,7.95879971,187.2,187.15,20.0]
[1730975817565,7.95879971,187.18,187.14,20.0]
[1730975818285,7.95879971,187.18,187.14,0.12549]
[1730975818861,7.95879971,187.19,187.14,0.12549]
[1730975819075,7.95879971,187.2,187.14,8.08428971]
[1730975819580,7.95879971,187.2,187.15,20.0]
[1730975820073,7.95879971,187.19,187.14,20.12549]
[1730975821187,16.4534,187.25,187.14,20.12549]
[1730975821188,7.95879971,187.2,187.14,28.08428971]
[1730975822289,16.4534,187.25,187.14,28.08428971]
[1730975822290,16.4534,187.25,187.15,7.95879971]
[1730975822581,7.95879971,187.22,187.17,20.0]
[1730975822998,7.95879971,187.2,187.13,6.6024]
[1730975823183,7.95879971,187.18,187.13,43.776884]
[1730975823998,7.95879971,187.15,187.14,4.95175213]
[1730975824195,7.95879971,187.15,187.09,7.95879971]
[1730975824196,7.95879971,187.15,187.11,0.12549]
[1730975824683,16.4534,187.25,187.11,0.12549]
[1730975824684,7.95879971,187.16,187.11,0.12549]
[1730975825083,7.95879971,187.16,187.11,20.12549]
[1730975825417,7.95879971,187.13,187.09,20.0]
[1730975825601,7.95879971,187.12,187.08,0.9268813]
[1730975826192,16.5095,187.18,187.07,0.12549]
[1730975826394,7.95879971,187.14,187.07,8.08428971]
[1730975826691,7.95879971,187.15,187.09,7.95879971]
[1730975826895,7.95879971,187.16,187.1,28.08428971]
[1730975827278,7.95879971,187.17,187.1,28.08428971]
[1730975827769,15.3269,187.22,187.12,28.08428971]
[1730975827970,7.95879971,187.19,187.13,7.95879971]
[1730975828195,7.95879971,187.2,187.14,7.95879971]
[1730975828396,7.95879971,187.22,187.16,7.95879971]
[1730975828698,7.95879971,187.22,187.17,20.0]
[1730975829277,7.95879971,187.24,187.18,7.95879971]
[1730975830373,7.95879971,187.23,187.17,7.95879971]
[1730975830590,7.95879971,187.23,187.18,20.0]
[1730975830791,7.95879971,187.22,187.18,20.0]
[1730975831092,7.95879971,187.22,187.17,23.776884]
[1730975831299,7.95879971,187.21,187.15,7.95879971]
[1730975831470,7.95879971,187.19,187.15,20.0]
[1730975831893,7.95879971,187.17,187.11,27.95879971]
[1730975832196,7.95879971,187.15,187.1,16.3646]
[1730975832397,7.95879971,187.15,187.09,7.95879971]
[1730975832594,7.95879971,187.16,187.1,8.08428971]
[1730975832791,7.95879971,187.17,187.11,7.95879971]
[1730975833402,12.45248685,187.17,187.11,12.45248685]
[1730975834504,12.45248685,187.15,187.11,0.12549]
[1730975834999,12.45248685,187.14,187.08,12.45248685]
[1730975835201,12.45248685,187.14,187.07,12.45248685]
[1730975835411,12.45248685,187.13,187.07,12.45248685]
[1730975835891,12.45248685,187.15,187.09,12.57797685]
[1730975836596,12.45248685,187.14,187.09,0.12549]
[1730975836791,12.45248685,187.14,187.09,23.902374]
[1730975836988,6.1023,187.19,187.09,36.35486085]
[1730975837190,12.45248685,187.16,187.11,0.12549]
[1730975837492,12.45248685,187.17,187.11,12.45248685]
[1730975837700,12.45248685,187.17,187.12,0.12549]
[1730975837991,12.45248685,187.18,187.12,12.57797685]
[1730975838804,12.45248685,187.17,187.12,0.12549]
[1730975840800,12.45248685,187.16,187.1,32.57797685]
[1730975840998,12.45248685,187.16,187.12,0.12549]
[1730975841499,12.45248685,187.17,187.12,0.12549]
[1730975841697,12.45248685,187.17,187.12,20.12549]
[1730975842296,12.45248685,187.16,187.12,0.12549]
[1730975842804,12.45248685,187.16,187.11,23.776884]
[1730975843004,12.45248685,187.15,187.09,12.45248685]
[1730975843184,12.45248685,187.15,187.1,20.0]
[1730975843380,12.45248685,187.16,187.11,0.12549]
[1730975843580,12.45248685,187.17,187.11,13.28719671]
[1730975843785,12.45248685,187.16,187.11,0.83470986]
[1730975844003,12.45248685,187.15,187.11,0.83470986]
[1730975847199,12.45248685,187.15,187.11,0.70921986]
[1730975847509,12.45248685,187.14,187.11,0.70921986]
[1730975847685,12.45248685,187.15,187.11,0.70921986]
[1730975853391,7.9706758,187.15,187.11,0.70921986]
[1730975853716,16.2304,187.2,187.13,27.9706758]
[1730975853885,7.9706758,187.19,187.13,27.9706758]
[1730975854604,7.9706758,187.19,187.14,23.902374]
[1730975854808,6.3683,187.23,187.14,23.902374]
[1730975854809,7.9706758,187.2,187.14,31.8730498]
[1730975855204,7.9706758,187.19,187.13,27.9706758]
[1730975855510,7.9706758,187.18,187.13,27.9706758]
[1730975856013,7.9706758,187.19,187.13,27.9706758]
[1730975856889,7.9706758,187.2,187.14,7.9706758]
[1730975858713,7.9706758,187.21,187.15,31.8730498]
[1730975860434,7.9706758,187.2,187.15,23.902374]
[1730975860590,7.9706758,187.19,187.15,23.902374]
[1730975860799,7.9706758,187.19,187.14,43.902374]
[1730975861012,7.9706758,187.2,187.14,31.8730498]
[1730975861316,7.9706758,187.2,187.15,20.0]
[1730975863294,7.9706758,187.19,187.15,20.0]
[1730975864918,7.9706758,187.19,187.14,23.902374]
[1730975865110,7.9706758,187.19,187.15,20.0]
[1730975865706,7.9706758,187.18,187.15,20.0]
[1730975866015,7.9706758,187.16,187.1,20.0]
[1730975866198,7.9706758,187.17,187.12,0.12549]
[1730975866711,7.9706758,187.18,187.13,0.70921986]
[1730975866910,15.044,187.25,187.14,0.12549]
[1730975867096,7.9706758,187.19,187.14,23.902374]
[1730975867300,7.9706758,187.19,187.15,0.70921986]
[1730975867492,7.9706758,187.19,187.15,20.70921986]
[1730975868297,8.0706758,187.16,187.08,1.36591884]
[1730975868517,6.212,187.08,186.95,7.9706758]
[1730975868694,7.9706758,187.01,186.93,30.11252217]
[1730975868896,7.9706758,187.01,186.94,7.9706758]
[1730975869419,6.212,187.08,186.93,7.9706758]
[1730975869420,7.9706758,187.0,186.93,7.9706758]
[1730975869620,7.9706758,187.0,186.94,0.12549]
[1730975869912,7.9706758,187.0,186.94,28.0961658]
[1730975870328,7.9706758,187.0,186.94,7.9706758]
[1730975870809,7.9706758,187.02,186.96,7.9706758]
[1730975871015,6.212,187.08,186.96,7.9706758]
[1730975871016,7.9706758,187.03,186.96,7.9706758]
[1730975871412,12.4712561,187.02,186.96,12.4712561]
[1730975871713,12.4712561,187.02,186.97,20.0]
[1730975874600,12.4712561,187.03,186.97,12.4712561]
[1730975875327,12.4712561,187.04,186.98,12.4712561]
[1730975875631,12.4712561,187.05,187.0,20.0]
[1730975878814,12.4712561,187.06,187.0,32.4712561]
[1730975879118,12.4712561,187.06,186.96,30.11252217]
[1730975879119,12.4712561,187.06,187.01,12.4712561]
[1730975879797,12.4712561,187.07,187.01,12.4712561]
[1730975880002,12.4712561,187.07,187.02,20.0]
[1730975880695,12.4712561,187.08,187.02,12.4712561]
[1730975881019,12.4712561,187.09,187.03,12.4712561]
[1730975881209,12.4712561,187.09,186.99,20.0]
[1730975881210,12.4712561,187.09,187.04,12.4712561]
[1730975881525,12.4712561,187.11,187.05,12.4712561]
[1730975881703,12.4712561,187.11,187.06,32.4712561]
[1730975882829,12.4712561,187.12,187.06,32.4712561]
[1730975883327,12.4712561,187.13,187.07,12.4712561]
[1730975883529,12.4712561,187.13,187.08,12.4712561]
[1730975883713,12.4712561,187.13,187.07,12.5967461]
[1730975883915,12.4712561,187.13,187.08,12.4712561]
[1730975884121,12.4712561,187.13,187.07,12.5967461]
[1730975885001,12.4712561,187.09,187.02,20.0]
[1730975885202,12.4712561,187.09,187.04,20.0]
[1730975886330,12.4712561,187.09,187.0,6.4491]
[1730975886331,12.4712561,187.06,187.0,12.4712561]
[1730975886715,12.4712561,187.06,187.01,0.12549]
[1730975886911,12.4712561,187.06,187.01,12.5967461]
[1730975887112,12.4712561,187.07,187.01,12.5967461]
[1730975887618,12.4712561,187.07,187.02,20.0]
[1730975890243,12.4712561,187.07,187.01,12.5967461]
[1730975890463,12.4712561,187.06,187.01,12.5967461]
[1730975891121,12.4712561,187.07,187.01,12.5967461]
[1730975893340,7.97781494,187.07,187.01,7.97781494]
[1730975896639,7.97781494,187.03,186.94,30.11252217]
[1730975896943,7.97781494,187.01,186.92,2.25687602]
[1730975897127,7.97781494,187.01,186.9,37.56214375]
[1730975897448,7.97781494,187.01,186.94,7.97781494]
[1730975897750,7.97781494,187.01,186.95,7.97781494]
[1730975898426,7.97781494,187.02,186.96,7.97781494]
[1730975898625,7.97781494,187.02,186.97,20.0]
[1730975900747,21.9133,187.06,186.97,27.97781494]
[1730975900952,7.97781494,187.03,186.97,27.97781494]
[1730975901750,7.97781494,187.01,186.96,20.0]
[1730975902055,7.97781494,187.02,186.96,27.97781494]
[1730975902231,7.97781494,187.0,186.89,20.92832108]
[1730975902540,21.9133,187.06,186.93,0.12549]
[1730975902541,7.97781494,186.98,186.93,0.12549]
[1730975902733,7.97781494,186.99,186.93,8.10330494]
[1730975902941,7.97781494,186.99,186.94,0.70921986]
[1730975903741,7.97781494,186.99,186.94,20.70921986]
[1730975903939,7.97781494,186.98,186.94,0.70921986]
[1730975904139,23.776884,186.99,186.94,0.70921986]
[1730975904140,7.97781494,186.95,186.94,0.70921986]
[1730975904356,7.97781494,186.96,186.94,0.70921986]
[1730975904832,0.2,187.05,186.94,0.70921986]
[1730975904833,7.97781494,186.97,186.94,0.70921986]
[1730975905359,12.4788505,186.97,186.94,0.70921986]
[1730975906838,12.4788505,186.98,186.94,0.70921986]
[1730975907156,12.4788505,187.01,186.95,20.0]
[1730975907742,12.4788505,187.0,186.95,20.0]
[1730975909541,12.4788505,186.99,186.95,20.0]
[1730975909749,12.4788505,186.99,186.94,20.0]
[1730975910836,12.4788505,186.99,186.93,12.4788505]
[1730975910837,12.4788505,187.03,186.98,20.0]
[1730975911151,12.4788505,187.06,186.99,12.6043405]
[1730975911349,12.4788505,187.06,187.0,32.4788505]
[1730975911664,12.4788505,187.07,187.0,12.4788505]
[1730975911826,12.4788505,187.06,187.0,12.4788505]
[1730975912551,12.4788505,187.07,187.01,20.12549]
[1730975912848,12.4788505,187.09,187.03,32.4788505]
[1730975916755,12.4788505,187.1,187.04,12.4788505]
[1730975916953,12.4788505,187.1,187.01,20.0]
[1730975916954,12.4788505,187.09,187.03,12.4788505]
[1730975917961,15.8646,187.11,187.01,20.0]
[1730975917962,12.4788505,187.1,187.04,12.4788505]
[1730975918957,12.4788505,187.11,187.04,12.4788505]
[1730975919327,12.4788505,187.1,187.04,12.4788505]
[1730975921435,12.4788505,187.08,187.04,20.0]
[1730975922147,12.4788505,187.08,187.02,20.12549]
[1730975922330,23.776884,187.14,187.02,20.12549]
[1730975922532,12.4788505,187.08,187.02,20.12549]
[1730975923561,12.4788505,187.09,187.03,12.4788505]
[1730975923736,12.4788505,187.09,187.04,20.0]
[1730975924335,12.4788505,187.09,187.03,12.4788505]
[1730975924540,12.4788505,187.09,187.04,20.0]
[1730975925348,7.9763112,187.09,187.04,20.0]
[1730975926339,7.9763112,187.08,187.02,0.12549]
[1730975926656,7.9763112,187.08,187.02,20.12549]
[1730975927165,7.9763112,187.08,186.97,38.12904402]
[1730975927166,0.1,187.0,186.92,0.92805219]
[1730975927345,7.9763112,186.93,186.92,0.92805219]
[1730975927535,7.9763112,186.93,186.84,4.73118304]
[1730975927861,7.9763112,186.9,186.84,0.12549]
[1730975928239,0.12549,186.98,186.83,23.5520891]
[1730975928240,7.9763112,186.87,186.83,0.5742779]
[1730975928443,0.1,186.95,186.83,0.5742779]
[1730975928644,7.9763112,186.88,186.83,0.5742779]
[1730975928845,7.9763112,186.89,186.83,8.5505891]
[1730975929444,12.4897613,186.89,186.83,13.0640392]
[1730975929965,12.4897613,186.88,186.83,0.5742779]
[1730975930167,12.4897613,186.89,186.83,0.5742779]
[1730975930513,12.4897613,186.88,186.83,0.5742779]
[1730975930650,12.4897613,186.87,186.83,0.5742779]
[1730975931153,12.4897613,186.88,186.83,0.5742779]
[1730975931554,12.4897613,186.89,186.83,0.5742779]
[1730975932172,12.4897613,186.89,186.83,13.0640392]
[1730975932476,12.4897613,186.89,186.83,20.5742779]
[1730975934477,0.12549,186.97,186.86,12.4897613]
[1730975934478,23.776884,186.97,186.86,12.4897613]
[1730975934775,12.4897613,186.92,186.87,20.0]
[1730975937874,12.4897613,186.91,186.86,20.0]
[1730975939656,12.4897613,186.91,186.85,12.4897613]
[1730975941290,12.4897613,186.92,186.86,12.4897613]
[1730975942367,12.4897613,186.95,186.89,12.4897613]
[1730975942570,22.5432,187.04,186.93,12.4897613]
[1730975942879,12.4897613,187.0,186.93,12.4897613]
[1730975943069,12.4897613,186.99,186.93,12.4897613]
[1730975943656,12.4897613,186.98,186.92,12.4897613]
[1730975944575,12.4897613,187.0,186.93,12.4897613]
[1730975944777,12.4897613,187.01,186.95,12.4897613]
[1730975944970,12.4897613,187.02,186.96,12.4897613]
[1730975945178,12.4897613,187.03,186.96,12.4897613]
[1730975945565,12.4897613,187.05,186.98,12.4897613]
[1730975945766,12.4897613,187.05,186.99,12.4897613]
[1730975945961,12.4897613,187.07,187.01,12.4897613]
[1730975948088,12.4897613,187.08,187.01,12.4897613]
[1730975948274,12.4897613,187.08,187.02,12.4897613]
[1730975948472,12.4897613,187.1,187.04,12.4897613]
[1730975949685,12.4897613,187.11,187.05,12.4897613]
[1730975949868,12.4897613,187.12,187.06,12.4897613]
[1730975950987,12.4897613,187.09,187.03,12.4897613]
[1730975951169,12.4897613,187.08,187.02,12.4897613]
[1730975951482,12.4897613,187.07,187.01,12.4897613]
[1730975951670,12.4897613,187.08,187.02,12.4897613]
[1730975952180,12.4897613,187.07,187.01,12.4897613]
[1730975953184,12.4897613,187.07,187.0,28.3007613]
[1730975953488,0.22549,187.15,186.96,6.159]
[1730975953489,12.4897613,187.04,186.98,12.4897613]
[1730975953691,12.4897613,187.03,186.97,12.4897613]
[1730975954284,12.4897613,187.03,186.96,6.159]
[1730975954487,12.4897613,187.03,186.96,18.6487613]
[1730975954683,12.4897613,187.03,186.96,12.4897613]
[1730975954888,12.4897613,187.02,186.96,12.4897613]
[1730975955378,12.4897613,187.01,186.95,28.1690613]
[1730975955581,12.4897613,187.01,186.95,15.6793]
[1730975956089,15.5408,187.07,186.94,12.4897613]
[1730975956090,12.4897613,187.0,186.94,12.4897613]
[1730975956296,12.4897613,187.0,186.93,12.4897613]
[1730975956591,12.4897613,187.01,186.94,12.4897613]
[1730975956789,12.4897613,187.01,186.95,12.4897613]
[1730975957766,12.4897613,187.01,186.94,12.4897613]
[1730975958173,12.4897613,187.0,186.94,12.4897613]
[1730975958574,12.4897613,187.01,186.95,12.4897613]
[1730975958994,12.4897613,187.01,186.94,12.4897613]
[1730975959171,12.4897613,187.01,186.93,0.12549]
[1730975959172,12.4897613,187.02,186.96,12.4897613]
[1730975959378,12.4897613,187.02,186.95,12.4897613]
[1730975959875,12.4897613,187.01,186.94,12.4897613]
[1730975960798,12.4897613,187.0,186.94,12.4897613]
[1730975961189,12.4897613,187.0,186.93,12.4897613]
[1730975961690,12.4897613,186.99,186.93,12.4897613]
[1730975963591,12.4897613,187.0,186.93,12.4897613]
[1730975963795,12.4897613,187.0,186.94,12.4897613]
[1730975964169,12.4897613,187.0,186.91,15.2846]
[1730975964372,12.4897613,187.0,186.93,12.4897613]
[1730975965301,12.4897613,186.99,186.92,12.4897613]
[1730975967388,12.4897613,186.98,186.91,12.4897613]
[1730975967579,12.4897613,186.97,186.9,12.4897613]
[1730975967897,12.4897613,186.98,186.91,12.4897613]
[1730975968895,12.4897613,187.0,186.93,12.4897613]
[1730975969094,12.4897613,187.01,186.95,12.4897613]
[1730975969572,12.4897613,187.0,186.94,12.4897613]
[1730975970599,20.09126023,187.07,186.93,12.4897613]
[1730975970600,12.4897613,186.99,186.93,12.4897613]
[1730975971593,12.4897613,186.99,186.92,12.4897613]
[1730975971792,12.4897613,186.98,186.92,12.4897613]
[1730975974084,12.4897613,186.99,186.92,12.4897613]
[1730975976410,12.4897613,186.99,186.93,12.4897613]
[1730975977087,12.4897613,187.0,186.94,12.4897613]
[1730975977680,12.4897613,187.0,186.93,12.4897613]
[1730975977905,12.4897613,186.98,186.91,12.4897613]
[1730975978378,12.4897613,186.98,186.92,12.4897613]
[1730975978579,12.4897613,186.99,186.93,12.4897613]
[1730975979697,12.4897613,187.0,186.93,12.4897613]
[1730975979893,12.4897613,187.0,186.94,12.4897613]